Workbook

Sheet Sheet1
E2: TESTING
B3: Draw #01
B4: 2021-10-21
A7: Original | B7: Previous | E7: Current | G7: Previous | H7: Current | I7: Cumulative | J7: Remaining | K7: % Bal.
A8: Budget | B8: Adjustments | E8: Budget | G8: Fundings | H8: Disbursement | I8: Fundings | J8: to Fund | K8: to Fund
A10: 690000 | B10: 0 | E10: =SUM(A10:B10) -> 690000 | G10: 0 | H10: =H40+H44+H79 -> 278040 | I10: =SUM(G10:H10) -> 278040 | J10: =E10-I10 -> 411960 | K10: =IF( (E10=0), 0, SUM( J10 / E10 ) ) -> 0.5970434783
A11: 2855000 | B11: 0 | E11: =SUM(A11:B11) -> 2855000 | G11: 0 | H11: 0 | I11: =SUM(G11:H11) -> 0 | J11: =E11-I11 -> 2855000 | K11: =IF( (E11=0), 0, SUM( J11 / E11 ) ) -> 1
A12: 721500 | B12: 0 | E12: 721500 | G12: 0 | H12: 0 | I12: 0 | J12: 721500 | K12: 1
A13: 1805604 | B13: 0 | E13: 1805604 | G13: 0 | H13: =H35+H36 -> 46000 | I13: 46000 | J13: =E13-I13 -> 1759604 | K13: 0.9745237605
A14: 2333573.6 | B14: 0 | E14: 2333573.6 | G14: 0 | H14: =H41+H49+H66 -> 52942.26 | I14: =SUM(G14:H14) -> 52942.26 | J14: 2280631.34 | K14: 0.9773127961
A15: 2000000 | B15: 0 | E15: 2000000 | G15: 0 | H15: 0 | I15: 0 | J15: 2000000 | K15: 1
A16: 768426 | B16: 0 | E16: 768426 | G16: 0 | H16: 0 | I16: 0 | J16: =E16-I16 -> 768426 | K16: 1
A17: 321639 | B17: 0 | E17: 321639 | G17: 0 | H17: 0 | I17: 0 | J17: 321639 | K17: 1
A18: 837472 | B18: 0 | E18: 837472 | G18: 0 | H18: 0 | I18: 0 | J18: 837472 | K18: 1
A19: 564593 | B19: 0 | E19: 564593 | G19: 0 | H19: 0 | I19: 0 | J19: 564593 | K19: 1
A20: 403654.4 | B20: 0 | E20: 403654.4 | G20: 0 | H20: 0 | I20: 0 | J20: 403654.4 | K20: 1
A21: =SUM(A10:A20) -> 13301462 | B21: =SUM(B10:B20) -> 0 | C21: =SUM(C10:C20) -> 0 | D21: =SUM(D10:D20) -> 0 | E21: =SUM(E10:E20) -> 13301462 | G21: =SUM(G10:G20) -> 0 | H21: =SUM(H10:H20) -> 376982.26 | I21: =SUM(I10:I20) -> 376982.26 | J21: =SUM(J10:J20) -> 12924479.74 | K21: =IF( (E21=0), 0, SUM( J21 / E21 ) ) -> 0.9716585846
E22: =E21-A21 -> 0
A25: 100 | B25: 0 | C25: 0 | D25: 0 | E25: =A25+B25+C25+D25 -> 100 | G25: =+'[1]Draw Invoices'!D10 -> 0 | H25: 0 | I25: =SUM(G25:H25) -> 0 | J25: =E25-I25 -> 100 | K25: =IF( (E25=0), 0, SUM( J25 / E25 ) ) -> 1
A26: 100 | B26: 0 | E26: =A26+B26+C26+D26 -> 100 | G26: 0 | H26: 0 | I26: 0 | J26: 100 | K26: 1
A27: 5387598 | B27: 0 | C27: 0 | D27: 0 | E27: 5387598 | G27: 0 | H27: 0 | I27: 0 | J27: 5387598 | K27: 1
A28: 100 | B28: 0 | E28: 100 | G28: 0 | H28: 0 | I28: 0 | J28: 100 | K28: 1
A29: 151917 | B29: 0 | E29: 151917 | G29: 0 | H29: 0 | I29: 0 | J29: 151917 | K29: 1
A30: 4462 | B30: 0 | E30: 4462 | G30: 0 | H30: 0 | I30: 0 | J30: 4462 | K30: 1
A31: 1715400 | B31: 0 | C31: 0 | D31: 0 | E31: 1715400 | G31: 0 | H31: 0 | I31: 0 | J31: 1715400 | K31: 1
A32: =SUM(A25:A31) -> 7259677 | B32: =SUM(B25:B31) -> 0 | C32: =SUM(C25:C31) -> 0 | D32: =SUM(D25:D31) -> 0 | E32: =SUM(E25:E31) -> 7259677 | G32: =SUM(G25:G31) -> 0 | H32: =SUM(H25:H31) -> 0 | I32: =SUM(I25:I31) -> 0 | J32: =SUM(J25:J31) -> 7259677 | K32: 1
A35: 41500 | B35: 0 | C35: 0 | D35: 0 | E35: =SUM(A35:D35) -> 41500 | G35: 0 | H35: 39500 | I35: =SUM(G35:H35) -> 39500 | J35: =E35-I35 -> 2000 | K35: 0.04819277108
A36: 6500 | B36: 0 | D36: 0 | E36: =SUM(A36:D36) -> 6500 | G36: 0 | H36: 6500 | I36: =SUM(G36:H36) -> 6500 | J36: =E36-I36 -> 0 | K36: 0
A37: 51600 | B37: 0 | C37: 0 | D37: 0 | E37: 51600 | G37: 0 | H37: 0 | I37: 0 | J37: 51600 | K37: 1
A38: 0 | B38: 0 | C38: 0 | D38: 0 | E38: 0 | G38: 0 | H38: 0 | I38: 0 | J38: 0 | K38: 0
A39: 0 | B39: 0 | C39: 0 | D39: 0 | E39: 0 | G39: 0 | H39: 0 | I39: 0 | J39: 0 | K39: 0
A40: 40000 | B40: 0 | C40: 0 | D40: 0 | E40: 40000 | G40: 0 | H40: 40000 | I40: 40000 | J40: 0 | K40: 0
A41: 50000 | B41: 0 | E41: 50000 | G41: 0 | H41: 47353.68 | I41: 47353.68 | J41: 2646.32 | K41: 0.0529264
A42: 100000 | B42: 0 | E42: 100000 | G42: 0 | H42: 0 | I42: 0 | J42: 100000 | K42: 1
A43: 0 | B43: 0 | C43: 0 | D43: 0 | E43: 0 | G43: 0 | H43: 0 | I43: 0 | J43: 0 | K43: 0
A44: 606364 | B44: 0 | C44: 0 | D44: 0 | E44: 606364 | G44: 0 | H44: 195000 | I44: 195000 | J44: 411364 | K44: 0.6784109875
A45: 201512 | B45: 0 | E45: 201512 | G45: 0 | H45: 0 | I45: 0 | J45: 201512 | K45: 1
A46: 68000 | B46: 0 | C46: 0 | D46: 0 | E46: 68000 | G46: 0 | H46: 0 | I46: 0 | J46: 68000 | K46: 1
A47: 0 | B47: 0 | C47: 0 | D47: 0 | E47: 0 | G47: 0 | H47: 0 | I47: 0 | J47: 0 | K47: 0
A48: 50000 | B48: 0 | C48: 0 | D48: 0 | E48: 50000 | G48: 0 | H48: 0 | I48: 0 | J48: 50000 | K48: 1
A49: 40000 | B49: 0 | C49: 0 | D49: 0 | E49: 40000 | G49: 0 | H49: 2088 | I49: 2088 | J49: 37912 | K49: 0.9478
A50: 56000 | B50: 0 | C50: 0 | D50: 0 | E50: 56000 | G50: 0 | H50: 0 | I50: 0 | J50: 56000 | K50: 1
A51: 100000 | B51: 0 | E51: 100000 | G51: 0 | H51: 0 | I51: 0 | J51: 100000 | K51: 1
A52: 0 | B52: 0 | C52: 0 | D52: 0 | E52: 0 | G52: 0 | H52: 0 | I52: 0 | J52: 0 | K52: 0
A53: 0 | B53: 0 | C53: 0 | D53: 0 | E53: 0 | G53: 0 | H53: 0 | I53: 0 | J53: 0 | K53: 0
A54: 147158 | B54: 0 | C54: 0 | D54: 0 | E54: 147158 | G54: 0 | H54: 0 | I54: 0 | J54: 147158 | K54: 1
A55: 216551 | B55: 0 | C55: 0 | D55: 0 | E55: 216551 | G55: 0 | H55: 0 | I55: 0 | J55: 216551 | K55: 1
A56: 0 | B56: 0 | C56: 0 | D56: 0 | E56: 0 | G56: 0 | H56: 0 | I56: 0 | J56: 0 | K56: 0
A57: 0 | B57: 0 | C57: 0 | D57: 0 | E57: 0 | G57: 0 | H57: 0 | I57: 0 | J57: 0 | K57: 0
A58: 457814 | B58: 0 | C58: 0 | D58: 0 | E58: 457814 | G58: 0 | H58: 0 | I58: 0 | J58: 457814 | K58: 1
A59: 606869 | B59: 0 | C59: 0 | D59: 0 | E59: 606869 | G59: 0 | H59: 0 | I59: 0 | J59: 606869 | K59: 1
A60: 19863 | B60: 0 | C60: 0 | D60: 0 | E60: 19863 | G60: 0 | H60: 0 | I60: 0 | J60: 19863 | K60: 1
A61: 5416 | B61: 0 | C61: 0 | D61: 0 | E61: 5416 | G61: 0 | H61: 0 | I61: 0 | J61: 5416 | K61: 1
A62: 0 | B62: 0 | C62: 0 | D62: 0 | E62: 0 | G62: 0 | H62: 0 | I62: 0 | J62: 0 | K62: 0
A63: =0 -> 0 | B63: 0 | C63: 0 | D63: 0 | E63: 0 | G63: 0 | H63: 0 | I63: 0 | J63: 0 | K63: 0
A64: 65750 | B64: 0 | C64: 0 | D64: 0 | E64: 65750 | G64: 0 | H64: 0 | I64: 0 | J64: 65750 | K64: 1
A65: 100000 | B65: 0 | C65: 0 | D65: 0 | E65: 100000 | G65: 0 | H65: 0 | I65: 0 | J65: 100000 | K65: 1
A66: 100602 | B66: 0 | C66: 0 | D66: 0 | E66: 100602 | G66: 0 | H66: 3500.58 | I66: 3500.58 | J66: 97101.42 | K66: 0.9652036739
A67: 0 | B67: 0 | C67: 0 | D67: 0 | E67: 0 | G67: 0 | H67: 0 | I67: 0 | J67: 0 | K67: 0
A68: 8500 | B68: 0 | C68: 0 | D68: 0 | E68: 8500 | G68: 0 | H68: 0 | I68: 0 | J68: 8500 | K68: 1
A69: 100000 | B69: 0 | E69: 100000 | G69: 0 | H69: 0 | I69: 0 | J69: 100000 | K69: 1
A70: 91064 | B70: 0 | C70: 0 | D70: 0 | E70: 91064 | G70: 0 | H70: 0 | I70: 0 | J70: 91064 | K70: 1
A71: 0 | B71: 0 | E71: 0 | G71: 0 | H71: 0 | I71: 0 | J71: 0 | K71: 0
A72: 121500 | B72: 0 | E72: 121500 | G72: 0 | H72: 0 | I72: 0 | J72: 121500 | K72: 1
A73: 0 | B73: 0 | C73: 0 | D73: 0 | E73: 0 | G73: 0 | H73: 0 | I73: 0 | J73: 0 | K73: 0
A74: 90900 | B74: 0 | C74: 0 | D74: 0 | E74: 90900 | G74: 0 | H74: 0 | I74: 0 | J74: 90900 | K74: 1
A75: 0 | B75: 0 | C75: 0 | D75: 0 | E75: 0 | G75: 0 | H75: 0 | I75: 0 | J75: 0 | K75: 0
A76: 6690 | B76: 0 | C76: 0 | D76: 0 | E76: 6690 | G76: 0 | H76: 0 | I76: 0 | J76: 6690 | K76: 1
A77: 33450 | B77: 0 | C77: 0 | D77: 0 | E77: 33450 | G77: 0 | H77: 0 | I77: 0 | J77: 33450 | K77: 1
A78: 0 | B78: 0 | C78: 0 | D78: 0 | E78: 0 | G78: 0 | H78: 0 | I78: 0 | J78: 0 | K78: 0
A79: 90000 | B79: 0 | C79: 0 | D79: 0 | E79: 90000 | G79: 0 | H79: 43040 | I79: 43040 | J79: 46960 | K79: 0.5217777778
A80: 10000 | B80: 0 | E80: 10000 | G80: 0 | H80: 0 | I80: 0 | J80: 10000 | K80: 1
A81: 56420 | B81: 0 | E81: 56420 | G81: 0 | H81: 0 | I81: 0 | J81: 56420 | K81: 1
A82: 0 | B82: 0 | C82: 0 | D82: 0 | E82: 0 | G82: 0 | H82: 0 | I82: 0 | J82: 0 | K82: 0
A83: 40000 | B83: 0 | C83: 0 | D83: 0 | E83: 40000 | G83: 0 | H83: 0 | I83: 0 | J83: 40000 | K83: 1
A84: 0 | B84: 0 | C84: 0 | D84: 0 | E84: 0 | G84: 0 | H84: 0 | I84: 0 | J84: 0 | K84: 0
A85: 0 | B85: 0 | C85: 0 | D85: 0 | E85: 0 | G85: 0 | H85: 0 | I85: =SUM(G85:H85) -> 0 | J85: =E85-I85 -> 0 | K85: 0
A86: =SUM(A35:A85) -> 3780023 | B86: =SUM(B35:B85) -> 0 | C86: =SUM(C35:C85) -> 0 | D86: =SUM(D35:D85) -> 0 | E86: =SUM(E35:E85) -> 3780023 | G86: =SUM(G35:G85) -> 0 | H86: =SUM(H35:H85) -> 376982.26 | I86: =SUM(I35:I85) -> 376982.26 | J86: =E86-I86 -> 3403040.74 | K86: 0.9002698502
A88: 482555 | B88: 0 | C88: 0 | D88: 0 | E88: =A88+B88+C88+D88 -> 482555 | G88: 0 | H88: ='[1]Draw Invoices'!D297 -> 0 | I88: =SUM(G88:H88) -> 0 | J88: =E88-I88 -> 482555 | K88: 1
A89: 321639 | B89: 0 | E89: =A89+B89+C89+D89 -> 321639 | G89: 0 | H89: 0 | I89: =SUM(G89:H89) -> 0 | J89: =E89-I89 -> 321639 | K89: =IF( (E89=0), 0, SUM( J89 / E89 ) ) -> 1
A90: 203000 | B90: 0 | C90: 0 | D90: 0 | E90: =A90+B90+C90+D90 -> 203000 | G90: 0 | H90: ='[1]Draw Invoices'!D302 -> 0 | I90: =SUM(G90:H90) -> 0 | J90: =E90-I90 -> 203000 | K90: 1
A91: =SUM(A88:A90) -> 1007194 | B91: =SUM(B88:B90) -> 0 | C91: =SUM(C88:C90) -> 0 | D91: =SUM(D88:D90) -> 0 | E91: =A91+B91+C91+D91 -> 1007194 | G91: =SUM(G88:G90) -> 0 | H91: =SUM(H88:H90) -> 0 | I91: =SUM(I88:I90) -> 0 | J91: =SUM(J88:J90) -> 1007194 | K91: 1
A93: 850914 | B93: 0 | E93: =A93+B93+C93+D93 -> 850914 | G93: 0 | H93: 0 | I93: 0 | J93: =E93-I93 -> 850914 | K93: 1
A94: 403654 | B94: 0 | C94: 0 | D94: 0 | E94: =A94+B94+C94 -> 403654 | G94: 0 | H94: ='[1]Draw Invoices'!D308 -> 0 | I94: =G94+H94 -> 0 | J94: =E94-I94 -> 403654 | K94: 1
A95: =SUM(A93:A94) -> 1254568 | B95: =SUM(B93:B94) -> 0 | C95: =SUM(C93:C94) -> 0 | D95: =SUM(D93:D94) -> 0 | E95: =SUM(E93:E94) -> 1254568 | J95: =SUM(J93:J94) -> 1254568 | K95: 1
A98: =A32+A86+A91+A95 -> 13301462 | B98: =B32+B86+B91+B94 -> 0 | C98: =C32+C86+C91+C94 -> 0 | D98: =D32+D86+D91+D94 -> 0 | E98: =E32+E86+E91+E95 -> 13301462 | G98: =G32+G86+G91+G94 -> 0 | H98: =H32+H86+H91+H94 -> 376982.26 | I98: =I32+I86+I91+I94 -> 376982.26 | J98: =J32+J86+J91+J95 -> 12924479.74 | K98: 0.9716585846
I99: =I21-I98 -> 0
A100: =A21-A98 -> 0 | B100: =B21-B98 -> 0 | C100: =C21-C98 -> 0 | D100: =D21-D98 -> 0 | E100: =E21-E98 -> 0 | G100: =G21-G98 -> 0 | H100: =H21-H98 -> 0 | I100: =I21-I98 -> 0 | J100: =J21-J98 -> 0
